bitfinex/quotes_SOLUSD_20241225
["timestamp","ask_amount","ask_price","bid_price","bid_amount"]
[1735136928109,15.26197542,198.48,198.4,15.26197542]
[1735136928809,15.26197542,198.46,198.4,15.26197542]
[1735136931626,15.26197542,198.46,198.38,15.26197542]
[1735136932124,9.76708238,198.46,198.38,9.76708238]
[1735136937323,9.76708238,198.44,198.35,0.75596252]
[1735136937526,9.76708238,198.39,198.31,0.75600543]
[1735136937734,9.76708238,198.38,198.3,22.37368238]
[1735136937917,9.76708238,198.37,198.3,22.37368238]
[1735136938420,9.76708238,198.38,198.3,22.37368238]
[1735136938621,9.76708238,198.38,198.31,9.76708238]
[1735136939020,9.76708238,198.38,198.31,8.67388238]
[1735136939828,9.76708238,198.39,198.32,9.76708238]
[1735136940219,9.76708238,198.39,198.32,8.68298238]
[1735136942732,9.76708238,198.34,198.26,12.6093]
[1735136942935,36.376184,198.43,198.24,7.7585992]
[1735136942936,9.76708238,198.31,198.24,7.7585992]
[1735136943114,9.76708238,198.31,198.24,17.52568158]
[1735136943935,9.76708238,198.31,198.24,9.76708238]
[1735136944109,7.6002,198.36,198.24,15.28272387]
[1735136944316,15.28272387,198.31,198.24,15.28272387]
[1735136944521,15.28272387,198.33,198.26,15.28272387]
[1735136944840,15.28272387,198.34,198.27,15.28272387]
[1735136945314,15.28272387,198.35,198.28,15.28272387]
[1735136947435,7.6002,198.36,198.27,15.28272387]
[1735136947436,15.28272387,198.34,198.27,15.28272387]
[1735136947638,15.28272387,198.34,198.26,15.28272387]
[1735136948412,15.28272387,198.34,198.27,15.28272387]
[1735136957534,15.28272387,198.34,198.26,15.28272387]
[1735136958445,15.28272387,198.34,198.27,15.28272387]
[1735136958940,15.28272387,198.34,198.26,15.28272387]
[1735136959746,15.28272387,198.34,198.27,15.28272387]
[1735136960439,15.28272387,198.35,198.27,15.28272387]
[1735136960639,22.88292387,198.36,198.29,15.28272387]
[1735136961021,22.88292387,198.36,198.28,15.28272387]
[1735136962348,15.28272387,198.35,198.27,15.28272387]
[1735136962746,15.28272387,198.35,198.28,15.28272387]
[1735136964237,9.77743247,198.35,198.28,9.77743247]
[1735136967847,17.37763247,198.36,198.28,9.77743247]
[1735136968039,9.77743247,198.34,198.27,9.77743247]
[1735136969353,9.77743247,198.34,198.26,9.77743247]
[1735136969755,9.77743247,198.33,198.25,20.0]
[1735136970052,9.77743247,198.33,198.26,9.77743247]
[1735136971655,9.77743247,198.32,198.25,29.77743247]
[1735136972154,9.77743247,198.33,198.26,9.77743247]
[1735136975357,9.77743247,198.32,198.25,29.77743247]
[1735136976758,9.77743247,198.33,198.26,9.77743247]
[1735136978955,9.77743247,198.32,198.25,29.77743247]
[1735136979446,9.77743247,198.33,198.26,9.77743247]
[1735136980562,9.77743247,198.34,198.27,9.77743247]
[1735136982564,9.77743247,198.33,198.26,9.77743247]
[1735136987966,9.77743247,198.34,198.26,9.77743247]
[1735136988362,7.6002,198.36,198.3,9.77743247]
[1735136989249,9.77743247,198.39,198.32,9.77743247]
[1735136990372,9.77743247,198.38,198.31,9.77743247]
[1735136992570,1.551,198.41,198.31,9.77743247]
[1735136992748,9.77743247,198.38,198.31,9.77743247]
[1735136996385,9.77743247,198.37,198.26,14.86825272]
[1735136996555,1.551,198.41,198.29,20.0]
[1735136996556,9.77743247,198.33,198.29,20.0]
[1735136998955,9.77743247,198.34,198.29,20.0]
[1735136999368,1.6091,198.33,198.29,20.0]
[1735136999751,1.6091,198.33,198.26,9.77743247]
[1735136999955,9.77743247,198.32,198.25,9.77743247]
[1735137000155,11.38653247,198.33,198.26,9.77743247]
[1735137001076,1.6091,198.33,198.26,9.77743247]
[1735137001285,1.6091,198.33,198.28,9.77743247]
[1735137001583,6.2751,198.34,198.3,9.77743247]
[1735137002372,9.77743247,198.37,198.31,9.77743247]
[1735137002576,1.6091,198.38,198.33,9.77743247]
[1735137004080,9.77743247,198.37,198.31,9.77743247]
[1735137004260,1.6091,198.38,198.32,9.77743247]
[1735137004461,1.6091,198.38,198.33,9.77743247]
[1735137004695,1.6091,198.43,198.37,9.77743247]
[1735137004983,9.77743247,198.47,198.4,9.77743247]
[1735137007083,9.77743247,198.46,198.39,9.77743247]
[1735137007277,9.77743247,198.46,198.38,9.77743247]
[1735137007960,9.77743247,198.45,198.38,9.77743247]
[1735137008295,9.77743247,198.41,198.34,9.77743247]
[1735137008462,9.77743247,198.4,198.3,12.6069]
[1735137008770,9.77743247,198.4,198.32,9.77743247]
[1735137008970,9.77743247,198.4,198.33,9.77743247]
[1735137009171,9.77743247,198.39,198.32,9.77743247]
[1735137010183,9.77743247,198.4,198.33,9.77743247]
[1735137010387,20.0,198.44,198.33,20.0]
[1735137010575,9.77743247,198.4,198.33,29.77743247]
[1735137011398,9.77743247,198.43,198.35,9.77743247]
[1735137011565,1.6091,198.48,198.38,9.77743247]
[1735137011892,9.77743247,198.46,198.39,9.77743247]
[1735137012188,9.77743247,198.47,198.4,9.77743247]
[1735137012361,1.6091,198.48,198.41,9.77743247]
[1735137012563,7.86922999,198.54,198.38,0.12549]
[1735137012564,9.77743247,198.51,198.44,9.77743247]
[1735137012770,11.28753247,198.53,198.46,9.77743247]
[1735137015797,9.77743247,198.51,198.44,9.77743247]
[1735137016593,9.77743247,198.52,198.44,9.77743247]
[1735137017875,9.77743247,198.52,198.44,9.07153247]
[1735137018279,1.5101,198.53,198.42,20.0]
[1735137018486,9.77743247,198.5,198.42,29.77743247]
[1735137019195,9.77743247,198.49,198.42,29.77743247]
[1735137019396,9.77743247,198.47,198.4,9.77743247]
[1735137020784,9.77743247,198.49,198.41,9.77743247]
[1735137021175,9.77743247,198.48,198.41,9.77743247]
[1735137021377,9.77743247,198.47,198.4,9.77743247]
[1735137022698,9.77743247,198.48,198.41,9.77743247]
[1735137022911,9.77743247,198.51,198.43,9.77743247]
[1735137023075,9.77743247,198.52,198.44,9.77743247]
[1735137023583,9.77743247,198.51,198.44,9.77743247]
[1735137024096,9.77743247,198.51,198.44,9.58033247]
[1735137025905,20.0,198.55,198.46,9.77743247]
[1735137026113,9.77743247,198.53,198.46,9.77743247]
[1735137026408,9.77743247,198.53,198.45,9.77743247]
[1735137026807,9.77743247,198.54,198.46,9.77743247]
[1735137027110,9.77743247,198.53,198.45,9.77743247]
[1735137029301,9.77743247,198.55,198.47,9.77743247]
[1735137029486,33.89818346,198.58,198.51,9.77743247]
[1735137029690,33.89818346,198.58,198.52,9.77743247]
[1735137030113,6.0215,198.59,198.53,9.77743247]
[1735137030419,11.37043247,198.62,198.55,9.77743247]
[1735137031514,15.79893247,198.65,198.58,9.77743247]
[1735137031686,1.593,198.67,198.6,9.77743247]
[1735137032085,11.37043247,198.67,198.6,9.77743247]
[1735137032282,9.77743247,198.66,198.59,9.77743247]
[1735137032819,1.593,198.67,198.6,9.77743247]
[1735137032820,11.37043247,198.67,198.6,9.77743247]
[1735137033109,9.77743247,198.67,198.6,9.77743247]
[1735137033291,9.77743247,198.67,198.59,9.77743247]
[1735137034294,15.22902248,198.67,198.59,15.22902248]
[1735137035008,15.22902248,198.67,198.6,15.22902248]
[1735137035917,15.22902248,198.66,198.59,15.22902248]
[1735137036611,15.22902248,198.66,198.59,13.69572248]
[1735137039296,15.22902248,198.65,198.58,15.22902248]
[1735137040311,15.22902248,198.66,198.59,15.22902248]
[1735137040511,6.0215,198.7,198.62,15.22902248]
[1735137040703,1.593,198.72,198.65,15.22902248]
[1735137040907,6.1044,198.75,198.67,15.22902248]
[1735137040908,21.33342248,198.75,198.67,15.22902248]
[1735137041097,6.1044,198.75,198.69,15.22902248]
[1735137043006,1.665,198.77,198.7,35.22902248]
[1735137043226,1.665,198.77,198.71,15.22902248]
[1735137043392,1.665,198.77,198.7,35.22902248]
[1735137043791,16.89402248,198.77,198.7,35.22902248]
[1735137044631,1.665,198.77,198.7,35.22902248]
[1735137044804,15.22902248,198.76,198.68,15.22902248]
[1735137045134,15.22902248,198.73,198.65,15.22902248]
[1735137045338,15.22902248,198.72,198.66,20.0]
[1735137045829,15.22902248,198.73,198.66,20.0]
[1735137048132,15.22902248,198.73,198.66,35.22902248]
[1735137048312,1.665,198.77,198.69,15.22902248]
[1735137048623,15.22902248,198.76,198.69,15.22902248]
[1735137050835,15.22902248,198.75,198.68,15.22902248]
[1735137051937,15.22902248,198.74,198.67,15.22902248]
[1735137052103,15.22902248,198.72,198.65,35.22902248]
[1735137052304,15.22902248,198.73,198.66,15.22902248]
[1735137052600,15.22902248,198.74,198.67,15.22902248]
[1735137054041,15.22902248,198.76,198.68,15.22902248]
[1735137054332,15.22902248,198.75,198.68,15.22902248]
[1735137054706,15.22902248,198.74,198.67,15.22902248]
[1735137055429,15.22902248,198.73,198.66,20.0]
[1735137056226,15.22902248,198.73,198.65,29.74056878]
[1735137056227,9.74056878,198.73,198.65,29.74056878]
[1735137058128,9.74056878,198.73,198.66,9.74056878]
[1735137058309,9.74056878,198.73,198.65,29.74056878]
[1735137059729,9.74056878,198.73,198.66,9.74056878]
[1735137060229,9.74056878,198.73,198.65,20.0]
[1735137060430,9.74056878,198.71,198.65,20.0]
[1735137060737,9.74056878,198.73,198.65,29.74056878]
[1735137061118,9.74056878,198.72,198.65,29.74056878]
[1735137063030,9.74056878,198.71,198.65,20.0]
[1735137063237,9.74056878,198.72,198.65,29.74056878]
[1735137063842,9.74056878,198.72,198.65,20.0]
[1735137064631,9.74056878,198.72,198.65,29.74056878]
[1735137065007,9.74056878,198.71,198.62,15.8974]
[1735137065212,9.74056878,198.67,198.6,9.74056878]
[1735137065627,9.74056878,198.68,198.61,9.74056878]
[1735137065821,9.74056878,198.68,198.61,8.66636878]
[1735137067634,12.70459,198.75,198.64,9.74056878]
[1735137067934,9.74056878,198.71,198.64,9.74056878]
[1735137069620,9.74056878,198.71,198.63,9.74056878]
[1735137070023,23.776884,198.73,198.64,9.74056878]
[1735137070233,9.74056878,198.71,198.64,9.74056878]
[1735137070430,9.74056878,198.72,198.65,9.74056878]
[1735137071325,9.74056878,198.71,198.64,29.74056878]
[1735137072051,9.74056878,198.71,198.64,20.0]
[1735137074541,9.74056878,198.68,198.58,0.88048023]
[1735137074744,9.74056878,198.68,198.6,9.74056878]
[1735137074950,9.74056878,198.66,198.59,9.74056878]
[1735137075144,36.357184,198.73,198.58,0.12549]
[1735137075145,9.74056878,198.67,198.6,9.74056878]
[1735137075653,36.357184,198.73,198.62,9.74056878]
[1735137075870,9.74056878,198.69,198.61,9.74056878]
[1735137076362,9.74056878,198.69,198.62,9.74056878]
[1735137077352,9.74056878,198.69,198.61,9.74056878]
[1735137078145,9.74056878,198.69,198.61,8.66046878]
[1735137079247,9.74056878,198.69,198.62,9.74056878]
[1735137080853,9.74056878,198.69,198.57,8.59509095]
[1735137081044,9.74056878,198.69,198.61,9.74056878]
[1735137081353,9.74056878,198.67,198.61,9.74056878]
[1735137081853,9.74056878,198.69,198.61,9.74056878]
[1735137083752,9.74056878,198.66,198.57,7.84]
[1735137083955,9.74056878,198.65,198.57,11.36776878]
[1735137084552,14.1368,198.71,198.53,18.9412]
[1735137084553,9.74056878,198.64,198.53,18.9412]
[1735137084738,6.2598,198.68,198.53,18.9412]
[1735137084739,9.74056878,198.62,198.53,6.3489]
[1735137084932,9.74056878,198.62,198.54,9.74056878]
[1735137085133,9.74056878,198.62,198.55,9.74056878]
[1735137085556,9.74056878,198.63,198.56,9.74056878]
[1735137086059,9.74056878,198.62,198.55,9.74056878]
[1735137086355,9.74056878,198.62,198.54,9.74056878]
[1735137086735,9.74056878,198.62,198.54,9.35596878]
[1735137086936,9.74056878,198.62,198.55,9.74056878]
[1735137087656,9.74056878,198.61,198.52,1.5187]
[1735137087844,9.74056878,198.59,198.51,9.74056878]
[1735137088043,23.776884,198.62,198.51,9.34006878]
[1735137088346,9.74056878,198.59,198.51,9.34006878]
[1735137089454,9.74056878,198.62,198.55,9.74056878]
[1735137091163,11.29586878,198.63,198.56,9.74056878]
[1735137091460,9.74056878,198.62,198.55,9.74056878]
[1735137091869,9.74056878,198.61,198.54,9.74056878]
[1735137092071,9.74056878,198.62,198.55,9.74056878]
[1735137092536,11.29586878,198.63,198.56,9.74056878]
[1735137092742,1.5553,198.63,198.57,9.74056878]
[1735137094260,11.29586878,198.63,198.56,9.74056878]
[1735137094564,9.74056878,198.61,198.54,9.74056878]
[1735137097268,9.74056878,198.62,198.55,9.74056878]
[1735137097771,9.74056878,198.61,198.54,9.74056878]
[1735137097947,9.74056878,198.62,198.54,9.74056878]
[1735137098148,9.74056878,198.61,198.54,9.74056878]
[1735137098349,9.74056878,198.6,198.53,9.74056878]
[1735137099058,9.74056878,198.57,198.48,1.5187]
[1735137099265,9.74056878,198.57,198.49,9.74056878]
[1735137099768,9.74056878,198.57,198.5,9.74056878]
[1735137100750,9.74056878,198.57,198.49,9.74056878]
[1735137101153,9.74056878,198.56,198.48,1.5187]
[1735137101360,36.363684,198.62,198.48,1.5187]
[1735137101361,9.74056878,198.55,198.48,11.25926878]
[1735137101570,9.74056878,198.54,198.48,1.5187]
[1735137102073,9.74056878,198.52,198.48,1.5187]
[1735137102371,51.67646512,198.6,198.48,1.5187]
[1735137102372,9.74056878,198.5,198.48,1.5187]
[1735137103269,9.74056878,198.49,198.48,1.5187]
[1735137103975,9.74056878,198.5,198.48,1.5187]
[1735137104951,9.74056878,198.49,198.48,1.5187]
[1735137105276,9.74056878,198.49,198.41,9.74056878]
[1735137105659,9.74056878,198.47,198.4,9.74056878]
[1735137105976,9.74056878,198.46,198.39,9.74056878]
[1735137106963,9.74056878,198.46,198.39,9.06326878]
[1735137107771,9.74056878,198.46,198.39,9.74056878]
[1735137108476,23.776884,198.52,198.43,9.74056878]
[1735137108680,9.74056878,198.52,198.45,9.74056878]
[1735137109088,9.74056878,198.52,198.39,0.12549]
[1735137109089,9.74056878,198.51,198.44,9.74056878]
[1735137109272,9.74056878,198.51,198.44,8.66636878]
[1735137111583,9.74056878,198.49,198.43,20.0]
[1735137111782,9.74056878,198.46,198.39,9.74056878]
[1735137112979,9.74056878,198.47,198.4,9.74056878]
[1735137113281,9.74056878,198.49,198.42,9.74056878]
[1735137113473,9.74056878,198.5,198.43,9.74056878]
[1735137115093,23.776884,198.52,198.43,9.74056878]
[1735137115279,9.74056878,198.5,198.43,9.74056878]
[1735137115973,11.33996878,198.51,198.43,9.74056878]
[1735137116173,9.74056878,198.5,198.43,9.74056878]
[1735137116688,9.74056878,198.49,198.42,9.74056878]
[1735137116875,9.74056878,198.49,198.42,20.0]
[1735137117292,9.74056878,198.49,198.42,9.74056878]
[1735137117794,9.74056878,198.49,198.42,20.0]
[1735137117975,9.74056878,198.49,198.42,29.74056878]
[1735137118392,9.74056878,198.49,198.42,20.0]
[1735137119090,9.74056878,198.49,198.42,29.74056878]
[1735137119790,11.33996878,198.51,198.43,9.74056878]
[1735137120094,1.5994,198.51,198.44,9.74056878]
[1735137120691,11.33996878,198.51,198.44,9.74056878]
[1735137120884,1.5994,198.51,198.44,9.74056878]
[1735137122485,11.33996878,198.51,198.44,9.74056878]
[1735137123399,1.5994,198.51,198.45,9.74056878]
[1735137124485,1.5994,198.51,198.44,29.74056878]
[1735137125194,1.5994,198.51,198.44,20.0]
[1735137125493,11.33996878,198.51,198.44,20.0]
[1735137125876,1.5994,198.51,198.44,29.74056878]
[1735137126078,1.5994,198.51,198.45,9.74056878]
[1735137126279,1.5994,198.51,198.44,29.74056878]
[1735137127099,6.5018,198.53,198.47,9.74056878]
[1735137127276,1.6057,198.56,198.5,9.74056878]
[1735137127477,1.6057,198.56,198.49,0.12549]
[1735137127679,1.6057,198.61,198.54,9.74056878]
[1735137128579,11.34626878,198.61,198.53,9.74056878]
[1735137129601,11.34626878,198.61,198.54,9.74056878]
[1735137130520,1.6057,198.61,198.54,9.74056878]
[1735137130817,11.34626878,198.61,198.54,9.74056878]
[1735137131282,9.74056878,198.6,198.53,9.74056878]
[1735137131487,11.34626878,198.61,198.54,9.74056878]
[1735137134101,9.74056878,198.6,198.54,20.0]
[1735137134420,9.74056878,198.6,198.53,9.74056878]
[1735137135137,9.74056878,198.6,198.51,9.74056878]
[1735137135634,9.74056878,198.59,198.51,9.74056878]
[1735137136421,9.74056878,198.58,198.5,9.74056878]
[1735137136596,9.74056878,198.57,198.51,20.0]
[1735137136792,9.74056878,198.57,198.49,9.74056878]
[1735137138020,23.776884,198.6,198.48,22.33626878]
[1735137138021,9.74056878,198.56,198.48,22.33626878]
[1735137138194,9.74056878,198.56,198.48,9.74056878]
[1735137138399,9.74056878,198.53,198.46,9.74056878]
[1735137138999,11.34626878,198.53,198.46,9.74056878]
[1735137140815,1.6057,198.53,198.47,9.74056878]
[1735137141001,1.6057,198.53,198.4,27.1817842]
[1735137141002,1.5678,198.58,198.52,9.74056878]
[1735137141201,1.5678,198.58,198.54,9.74056878]
[1735137141917,6.2428,198.6,198.55,9.74056878]
[1735137142115,1.5678,198.63,198.56,9.74056878]
[1735137142116,11.30836878,198.63,198.56,9.74056878]
[1735137146007,1.5678,198.63,198.56,9.74056878]
[1735137146215,1.5678,198.63,198.58,9.74056878]
[1735137146632,1.5678,198.63,198.56,12.59]
[1735137146633,1.5678,198.63,198.57,9.74056878]
[1735137148110,1.5678,198.63,198.6,20.0]
[1735137148309,6.2428,198.65,198.6,20.0]
[1735137149203,9.74056878,198.66,198.6,20.0]
[1735137150030,11.30836878,198.68,198.6,20.0]
[1735137150254,11.30836878,198.68,198.61,9.74056878]
[1735137150717,11.30836878,198.68,198.61,8.65306878]
[1735137151219,11.30836878,198.68,198.61,20.0]
[1735137152031,11.30836878,198.68,198.61,29.74056878]
[1735137152235,11.30836878,198.68,198.63,9.74056878]
[1735137152236,1.5678,198.68,198.63,9.74056878]
[1735137153807,6.2428,198.7,198.63,9.74056878]
[1735137154012,6.2428,198.7,198.65,9.74056878]
[1735137154330,9.74056878,198.71,198.64,9.74056878]
[1735137154520,9.74056878,198.71,198.63,22.32676878]
[1735137156013,9.74056878,198.72,198.64,0.12549]
[1735137156330,1.518,198.78,198.67,9.86605878]
[1735137156532,9.74056878,198.75,198.67,9.74056878]
[1735137156723,9.74056878,198.74,198.67,9.74056878]
[1735137157111,9.74056878,198.74,198.66,9.74056878]
[1735137157313,9.74056878,198.73,198.66,9.74056878]
[1735137157526,9.74056878,198.73,198.66,9.35126878]
[1735137159961,9.74056878,198.73,198.65,9.74056878]
[1735137160116,9.74056878,198.73,198.66,20.0]
[1735137160315,9.74056878,198.73,198.65,9.74056878]
[1735137160535,9.74056878,198.73,198.66,9.74056878]
[1735137163736,9.74056878,198.73,198.65,12.5844]
[1735137163943,9.74056878,198.71,198.64,20.0]
[1735137164125,9.74056878,198.7,198.64,20.0]
[1735137164315,9.74056878,198.7,198.65,20.0]
[1735137164515,9.74056878,198.7,198.65,19.3923]
[1735137164716,9.74056878,198.71,198.63,9.74056878]
[1735137167237,9.74056878,198.7,198.63,8.66136878]
[1735137169142,9.74056878,198.7,198.61,12.5868]
[1735137169343,9.74056878,198.7,198.64,20.0]
[1735137170920,11.25856878,198.71,198.64,29.74056878]
[1735137171127,23.776884,198.75,198.66,9.74056878]
[1735137171437,9.74056878,198.73,198.66,9.74056878]
[1735137171643,9.74056878,198.74,198.67,9.74056878]
[1735137173517,9.74056878,198.74,198.66,9.74056878]
[1735137174243,9.74056878,198.74,198.65,0.12549]
[1735137174244,9.74056878,198.74,198.67,9.74056878]
[1735137174444,33.88861096,198.76,198.69,9.74056878]
[1735137175148,32.27491096,198.76,198.69,9.74056878]
[1735137175522,42.01547974,198.76,198.69,9.74056878]
[1735137175923,9.74056878,198.75,198.68,9.74056878]
[1735137176242,9.74056878,198.74,198.69,20.0]
[1735137176446,9.74056878,198.73,198.66,9.74056878]
[1735137176748,9.74056878,198.72,198.66,20.0]
[1735137177222,9.74056878,198.7,198.62,9.74056878]
[1735137177429,9.74056878,198.69,198.61,9.74056878]
[1735137178129,9.74056878,198.67,198.59,9.74056878]
[1735137178445,9.74056878,198.65,198.58,9.74056878]
[1735137179220,9.74056878,198.65,198.54,18.988]
[1735137179423,9.74056878,198.63,198.56,9.74056878]
[1735137179626,9.74056878,198.63,198.59,20.0]
[1735137179826,9.74056878,198.64,198.59,20.0]
[1735137180629,9.74056878,198.65,198.58,9.74056878]
[1735137180866,9.74056878,198.68,198.61,9.74056878]
[1735137181037,9.74056878,198.68,198.61,8.66636878]
[1735137181226,9.74056878,198.68,198.6,9.74056878]
[1735137181743,16.29056878,198.69,198.62,9.74056878]
[1735137182262,6.55,198.69,198.62,9.74056878]
[1735137182434,9.74056878,198.72,198.65,9.74056878]
[1735137182624,1.6137,198.73,198.62,0.75496851]
[1735137182830,9.74056878,198.64,198.56,9.74056878]
[1735137183034,9.74056878,198.63,198.56,9.74056878]
[1735137183453,9.74056878,198.64,198.57,9.74056878]
[1735137184131,15.23112325,198.64,198.58,20.0]
[1735137184861,15.23112325,198.64,198.58,19.33]
[1735137185563,15.23112325,198.63,198.56,15.23112325]
[1735137185774,15.23112325,198.62,198.55,15.23112325]
[1735137186665,15.23112325,198.63,198.56,15.23112325]
[1735137187863,15.23112325,198.64,198.57,15.23112325]
[1735137188069,16.79382325,198.65,198.57,15.23112325]
[1735137188439,15.23112325,198.64,198.57,15.23112325]
[1735137188653,15.23112325,198.63,198.57,20.0]
[1735137188972,15.23112325,198.63,198.55,15.23112325]
[1735137189167,15.23112325,198.63,198.57,20.0]
[1735137189329,15.23112325,198.63,198.56,15.23112325]
[1735137189533,15.23112325,198.63,198.57,20.0]
[1735137189836,15.23112325,198.63,198.56,15.23112325]
[1735137191967,15.23112325,198.64,198.56,15.23112325]
[1735137193879,15.23112325,198.64,198.56,13.54052325]
[1735137194582,15.23112325,198.62,198.55,15.23112325]
[1735137194783,15.23112325,198.62,198.54,12.5919]
[1735137194784,15.23112325,198.62,198.54,27.82302325]
[1735137195272,15.23112325,198.61,198.54,27.82302325]
[1735137196048,15.23112325,198.61,198.54,26.69992325]
[1735137196276,15.23112325,198.62,198.54,26.69992325]
[1735137198575,15.23112325,198.64,198.57,15.23112325]
[1735137201051,15.23112325,198.67,198.6,15.23112325]
[1735137201259,15.23112325,198.68,198.61,15.23112325]
[1735137201465,15.23112325,198.69,198.62,15.23112325]
[1735137201667,15.23112325,198.68,198.61,15.23112325]
[1735137201854,16.75482325,198.7,198.63,15.23112325]
[1735137202054,32.27491096,198.76,198.6,20.0]
[1735137202055,15.23112325,198.72,198.64,15.23112325]
[1735137202261,15.23112325,198.73,198.66,15.23112325]
[1735137202669,1.5237,198.75,198.63,0.75486688]
[1735137202670,15.23112325,198.74,198.67,15.23112325]
[1735137202854,1.5237,198.75,198.69,15.23112325]
[1735137203572,21.50492325,198.76,198.69,15.23112325]
[1735137203749,15.23112325,198.77,198.7,15.23112325]
[1735137203955,15.23112325,198.79,198.72,15.23112325]
[1735137204155,49.02526743,198.8,198.72,15.23112325]
[1735137204653,6.2738,198.81,198.73,15.23112325]
[1735137204654,15.23112325,198.81,198.73,15.23112325]
[1735137204856,15.23112325,198.81,198.74,15.23112325]
[1735137205061,13.52642325,198.8,198.73,15.23112325]
[1735137207183,15.23112325,198.81,198.74,15.23112325]
[1735137207489,15.23112325,198.8,198.75,20.0]
[1735137210487,15.23112325,198.79,198.75,20.0]
[1735137210789,15.23112325,198.78,198.71,15.23112325]
[1735137210973,15.23112325,198.78,198.7,15.23112325]
[1735137211376,15.23112325,198.78,198.71,15.98574789]
[1735137211767,15.23112325,198.79,198.72,15.23112325]
[1735137212099,15.23112325,198.8,198.75,20.0]
[1735137212987,15.23112325,198.81,198.75,20.0]
[1735137213476,15.23112325,198.8,198.74,20.0]
[1735137213874,15.23112325,198.81,198.74,35.23112325]
[1735137214590,15.23112325,198.82,198.74,35.23112325]
[1735137214787,15.23112325,198.82,198.75,15.23112325]
[1735137214976,15.23112325,198.83,198.76,15.23112325]
[1735137215784,15.23112325,198.82,198.75,15.23112325]
[1735137217686,15.23112325,198.82,198.76,20.0]
[1735137218068,15.23112325,198.81,198.76,20.0]
[1735137220389,15.23112325,198.82,198.76,20.0]
[1735137221094,15.23112325,198.81,198.76,20.0]
[1735137221591,15.23112325,198.8,198.76,20.0]
[1735137223182,15.23112325,198.79,198.75,20.0]
[1735137223582,15.23112325,198.8,198.75,20.0]
[1735137223775,15.23112325,198.81,198.74,15.23112325]
[1735137224190,9.73157287,198.81,198.74,9.73157287]
[1735137224493,9.73157287,198.8,198.73,29.73157287]
[1735137224790,9.73157287,198.81,198.74,9.73157287]
[1735137225011,1.5237,198.85,198.74,10.48610727]
[1735137225168,9.73157287,198.81,198.74,10.48610727]
[1735137226686,9.73157287,198.82,198.74,10.48610727]
[1735137231707,9.73157287,198.82,198.74,9.73157287]
[1735137231890,9.73157287,198.82,198.73,42.31137287]
[1735137237105,9.73157287,198.8,198.73,42.31137287]
[1735137237911,9.73157287,198.8,198.72,20.0]
[1735137238209,9.73157287,198.8,198.74,20.0]
[1735137239109,9.73157287,198.8,198.71,9.73157287]
[1735137239110,9.73157287,198.78,198.69,12.5819]
[1735137239310,9.73157287,198.77,198.7,9.73157287]
[1735137239998,9.73157287,198.78,198.71,9.73157287]
[1735137240400,23.776884,198.83,198.73,9.73157287]
[1735137240401,9.73157287,198.8,198.73,9.73157287]
[1735137241917,9.73157287,198.81,198.73,9.73157287]
[1735137242815,9.73157287,198.8,198.73,9.73157287]
[1735137244122,9.73157287,198.8,198.74,20.0]
[1735137244325,1.5237,198.85,198.74,20.0]
[1735137244510,9.73157287,198.81,198.74,20.0]
[1735137245600,1.5237,198.85,198.75,9.73157287]
[1735137245912,9.73157287,198.84,198.75,9.73157287]
[1735137246118,33.76151121,198.9,198.79,9.73157287]
[1735137246422,9.73157287,198.87,198.79,9.73157287]
[1735137247419,9.73157287,198.84,198.79,20.0]
[1735137247603,9.73157287,198.83,198.79,20.0]
[1735137248806,9.73157287,198.84,198.79,20.0]
[1735137250310,9.73157287,198.84,198.76,12.5779]
[1735137250618,9.73157287,198.82,198.76,12.5779]
[1735137250813,9.73157287,198.81,198.74,1.5103]
[1735137251018,9.73157287,198.79,198.74,1.5103]
[1735137251719,9.73157287,198.8,198.74,1.5103]
[1735137251928,20.0,198.86,198.74,11.24187287]
[1735137252120,9.73157287,198.81,198.74,11.24187287]
[1735137252424,9.73157287,198.8,198.74,1.5103]
[1735137257611,9.73157287,198.79,198.74,1.5103]
[1735137258322,9.73157287,198.76,198.73,20.0]
[1735137259133,9.73157287,198.75,198.69,1.5103]
[1735137259438,9.73157287,198.73,198.66,9.73157287]
[1735137260921,9.73157287,198.73,198.67,9.73157287]
[1735137261125,9.73157287,198.73,198.67,20.0]
[1735137261311,9.73157287,198.73,198.66,9.73157287]
[1735137262314,9.73157287,198.74,198.67,29.73157287]
[1735137262634,0.12549,198.8,198.67,29.73157287]
[1735137262814,9.73157287,198.75,198.68,9.73157287]
[1735137264021,9.73157287,198.74,198.67,20.0]
[1735137264325,9.73157287,198.74,198.67,29.73157287]
[1735137264815,9.73157287,198.74,198.67,9.73157287]
[1735137265015,0.12549,198.8,198.65,0.75483436]
[1735137265016,9.73157287,198.73,198.66,9.73157287]
[1735137267539,9.73157287,198.74,198.67,29.73157287]
[1735137271438,9.73157287,198.73,198.66,9.73157287]